bitfinex/quotes_BTCUSD_20241124
["timestamp","ask_amount","ask_price","bid_price","bid_amount"]
[1732446204209,0.10201427,97500.0,97486.0,0.01867636]
[1732446204438,0.10201427,97500.0,97486.0,0.02332325]
[1732446204876,0.00076842,97499.0,97486.0,0.02332325]
[1732446205097,0.10201427,97498.0,97486.0,0.02332325]
[1732446205320,0.10201427,97498.0,97487.0,0.01921656]
[1732446205716,0.10201427,97498.0,97488.0,0.00464317]
[1732446209036,0.07796842,97497.0,97488.0,0.00464317]
[1732446209263,0.10201427,97496.0,97488.0,0.00464317]
[1732446209475,0.00076842,97495.0,97471.0,0.15]
[1732446209708,0.10201427,97494.0,97472.0,0.02742]
[1732446209939,0.00076842,97493.0,97472.0,0.03206272]
[1732446210191,0.10201427,97492.0,97473.0,0.03062627]
[1732446210402,0.00076842,97491.0,97473.0,0.03062627]
[1732446210653,0.10201427,97490.0,97474.0,0.00463806]
[1732446210882,0.10201427,97490.0,97475.0,0.02724634]
[1732446211311,0.10201427,97490.0,97476.0,0.00463434]
[1732446214855,0.10201427,97490.0,97477.0,0.00102577]
[1732446215299,0.10201427,97490.0,97478.0,0.00460765]
[1732446215546,0.10201427,97490.0,97479.0,0.00102575]
[1732446215751,0.10201427,97490.0,97480.0,0.0063506]
[1732446215963,0.10201427,97490.0,97480.0,0.00460578]
[1732446216378,0.10201427,97490.0,97479.0,0.00102575]
[1732446216803,0.10373107,97490.0,97479.0,0.00102575]
[1732446217234,0.0017168,97490.0,97480.0,0.00102575]
[1732446217450,0.0017168,97490.0,97481.0,0.0798]
[1732446217683,0.0017168,97490.0,97482.0,0.00102569]
[1732446217893,0.0017168,97490.0,97483.0,0.00102569]
[1732446218112,0.0459,97516.0,97514.0,0.4573646]
[1732446218325,0.10201427,97515.0,97501.0,0.0798]
[1732446218535,0.10201427,97515.0,97502.0,0.00900552]
[1732446218747,0.10201427,97515.0,97503.0,0.0063929]
[1732446218968,0.10201427,97515.0,97502.0,0.00900552]
[1732446218969,0.10201427,97515.0,97504.0,0.00741838]
[1732446219183,0.10201427,97515.0,97505.0,0.00951984]
[1732446219638,0.10201427,97515.0,97505.0,0.05086423]
[1732446219851,0.10201427,97515.0,97505.0,0.00951984]
[1732446224689,0.10201427,97515.0,97501.0,0.1208565]
[1732446224690,0.10201427,97515.0,97506.0,0.00457997]
[1732446225107,0.10201427,97515.0,97502.0,0.01208565]
[1732446225314,0.10201427,97515.0,97507.0,0.00457904]
[1732446225541,0.10201427,97515.0,97502.0,0.01208565]
[1732446225749,0.10201427,97515.0,97508.0,0.00457811]
[1732446225961,0.10201427,97515.0,97502.0,0.01208565]
[1732446226174,0.10201427,97515.0,97503.0,0.01329422]
[1732446226388,0.10201427,97515.0,97503.0,0.01787699]
[1732446229360,0.15136842,97514.0,97503.0,0.00458277]
[1732446229545,0.023,97512.0,97503.0,0.00458277]
[1732446229858,0.023,97510.0,97501.0,0.0410565]
[1732446230079,0.10278269,97509.0,97501.0,0.0410565]
[1732446230294,0.10278269,97509.0,97487.0,0.0755]
[1732446230510,0.10278269,97509.0,97488.0,0.17849069]
[1732446230723,0.10278269,97509.0,97488.0,0.18304719]
[1732446233215,0.10278269,97509.0,97488.0,0.03304719]
[1732446233718,0.10201427,97509.0,97488.0,0.03304719]
[1732446233953,0.00025685,97513.0,97488.0,0.0045565]
[1732446233954,0.23038269,97508.0,97488.0,0.0045565]
[1732446234430,0.23038269,97508.0,97475.0,0.15]
[1732446234669,0.23038269,97508.0,97477.0,0.02263584]
[1732446234897,0.23038269,97508.0,97477.0,0.0272017]
[1732446235782,0.23038269,97508.0,97478.0,0.00102574]
[1732446236278,0.23038269,97508.0,97479.0,0.00456399]
[1732446236501,0.23038269,97508.0,97480.0,0.00102574]
[1732446236711,0.23038269,97508.0,97481.0,0.0379084]
[1732446236928,0.23038269,97508.0,97481.0,0.04247053]
[1732446237139,0.00076842,97507.0,97483.0,0.0755]
[1732446237421,0.10201427,97506.0,97484.0,0.00102562]
[1732446237649,0.10201427,97506.0,97485.0,0.03276524]
[1732446237875,0.10201427,97506.0,97485.0,0.00102562]
[1732446238111,0.10201427,97506.0,97486.0,0.00456068]
[1732446238341,0.10201427,97506.0,97487.0,0.00102562]
[1732446238558,0.10201427,97506.0,97486.0,0.00456068]
[1732446238779,0.00076842,97505.0,97488.0,0.00455882]
[1732446239014,0.10201427,97504.0,97487.0,0.03619666]
[1732446239249,0.10201427,97504.0,97489.0,0.00455696]
[1732446239482,0.10201427,97504.0,97488.0,0.03451083]
[1732446239666,0.10201427,97504.0,97490.0,0.00454845]
[1732446239929,0.10201427,97504.0,97489.0,0.02600108]
[1732446239930,0.00076842,97503.0,97491.0,0.00454752]
[1732446240176,0.10201427,97502.0,97491.0,0.00454752]
[1732446240418,0.00076842,97501.0,97491.0,0.00454752]
[1732446240640,0.00076842,97501.0,97478.0,0.15]
[1732446240641,0.10201427,97500.0,97478.0,0.15]
[1732446240883,0.10201427,97500.0,97484.0,0.04142258]
[1732446241118,0.10201427,97500.0,97482.0,0.17652668]
[1732446241119,0.10201427,97500.0,97482.0,0.18107886]
[1732446241350,0.10201427,97500.0,97485.0,0.00557507]
[1732446241593,0.10201427,97500.0,97486.0,0.02200102]
[1732446241828,0.10201427,97500.0,97488.0,0.0008581]
[1732446242300,0.10201427,97500.0,97489.0,0.0045482]
[1732446242822,0.10201427,97500.0,97490.0,0.00102568]
[1732446243063,0.10201427,97500.0,97488.0,0.0008581]
[1732446243513,0.10201427,97500.0,97489.0,0.0045482]
[1732446243992,0.10201427,97500.0,97488.0,0.0008581]
[1732446244455,0.10201427,97500.0,97489.0,0.00454929]
[1732446244730,0.10201427,97500.0,97489.0,0.02419615]
[1732446244999,0.10201427,97500.0,97489.0,0.01964686]
[1732446245237,0.10201427,97500.0,97490.0,0.00454836]
[1732446248216,0.00076842,97499.0,97490.0,0.00454836]
[1732446248435,0.18461427,97498.0,97490.0,0.00454836]
[1732446248675,0.045,97497.0,97491.0,0.04042313]
[1732446248892,0.10201427,97496.0,97491.0,0.04042313]
[1732446249101,0.00076842,97495.0,97492.0,0.00454371]
[1732446249291,0.10201427,97494.0,97492.0,0.00454371]
[1732446249556,0.10201427,97494.0,97489.0,0.01964686]
[1732446249800,0.10201427,97494.0,97490.0,0.0170505]
[1732446250004,0.10201427,97494.0,97490.0,0.02159328]
[1732446250445,0.10201427,97494.0,97490.0,0.00454278]
[1732446250907,0.10201427,97494.0,97488.0,0.0008581]
[1732446251362,0.10201427,97494.0,97489.0,0.00454371]
[1732446251831,0.10201427,97494.0,97488.0,0.0008581]
[1732446252081,0.00025685,97513.0,97488.0,0.0008581]
[1732446252082,0.0826,97506.0,97489.0,0.0765]
[1732446252293,0.10201427,97505.0,97490.0,0.13760562]
[1732446252535,0.10201427,97505.0,97489.0,0.08105466]
[1732446252536,0.10201427,97505.0,97491.0,0.09740251]
[1732446252749,0.00025685,97513.0,97494.0,0.09181379]
[1732446252956,0.10227112,97513.0,97500.0,0.09181379]
[1732446253168,0.10227112,97513.0,97495.0,0.23105308]
[1732446253169,0.10227112,97513.0,97506.0,0.09181379]
[1732446253393,0.10227112,97513.0,97501.0,0.32221184]
[1732446253394,0.10227112,97513.0,97507.0,0.09181379]
[1732446253600,0.10227112,97513.0,97507.0,0.00455559]
[1732446254010,0.10227112,97513.0,97507.0,0.09636938]
[1732446254224,0.10227112,97513.0,97508.0,0.04942177]
[1732446254647,0.10227112,97513.0,97509.0,0.00455373]
[1732446255075,0.10227112,97513.0,97508.0,0.04942177]
[1732446255314,0.10227112,97513.0,97510.0,0.0045528]
[1732446255558,0.10227112,97513.0,97509.0,0.00455373]
[1732446255768,0.10227112,97513.0,97511.0,0.00455187]
[1732446255975,0.10227112,97513.0,97510.0,0.0045528]
[1732446256205,0.10227112,97513.0,97512.0,0.00455094]
[1732446256412,0.10227112,97513.0,97511.0,0.00455187]
[1732446256623,0.10227112,97513.0,97512.0,0.00455094]
[1732446256842,0.00025685,97513.0,97512.0,0.00455094]
[1732446257086,0.00025685,97513.0,97508.0,0.02102846]
[1732446257295,0.00025685,97513.0,97512.0,0.00455094]
[1732446257515,0.00025685,97513.0,97509.0,0.01138269]
[1732446257995,0.00025685,97513.0,97510.0,0.0045528]
[1732446259493,0.00076842,97521.0,97510.0,0.0045528]
[1732446259706,0.10201427,97514.0,97510.0,0.0045528]
[1732446260868,0.10201427,97514.0,97511.0,0.01087339]
[1732446261083,0.10201427,97514.0,97511.0,0.01542619]
[1732446261525,0.05006842,97530.0,97511.0,0.01542619]
[1732446261716,0.0493,97530.0,97511.0,0.01645163]
[1732446261977,0.00076842,97545.0,97511.0,0.01645163]
[1732446261978,0.0771,97539.0,97532.0,0.5373836]
[1732446262194,0.0493,97541.0,97516.0,0.09179959]
[1732446262195,0.10201427,97538.0,97516.0,0.09179959]
[1732446262413,0.10201427,97538.0,97533.0,0.00449258]
[1732446262628,0.10201427,97538.0,97521.0,0.09282487]
[1732446262844,0.10201427,97538.0,97526.0,0.09179959]
[1732446263060,0.10201427,97538.0,97527.0,0.04140301]
[1732446263276,0.10201427,97538.0,97527.0,0.13768752]
[1732446263696,0.00076842,97546.0,97528.0,0.00102528]
[1732446263933,0.10201427,97545.0,97529.0,0.09179959]
[1732446264153,0.00076842,97544.0,97530.0,0.04174898]
[1732446264371,0.10201427,97543.0,97529.0,0.00448957]
[1732446264577,0.10201427,97543.0,97527.0,0.13310107]
[1732446264578,0.10201427,97543.0,97531.0,0.00446686]
[1732446264785,0.10201427,97543.0,97528.0,0.03166469]
[1732446265000,0.00076842,97542.0,97532.0,0.004465]
[1732446265244,0.10201427,97541.0,97522.0,0.15]
[1732446265510,0.00076842,97540.0,97533.0,0.00446103]
[1732446265735,0.10201427,97539.0,97523.0,0.00446941]
[1732446265958,0.10201427,97539.0,97523.0,0.04136207]
[1732446265959,0.00076842,97538.0,97523.0,0.04136207]
[1732446266182,0.0771,97535.0,97524.0,0.00446662]
[1732446266404,0.10278269,97534.0,97524.0,0.00446662]
[1732446266829,0.10278269,97534.0,97519.0,0.03416171]
[1732446267250,0.10278269,97534.0,97520.0,0.00446569]
[1732446267753,0.10278269,97534.0,97507.0,0.15]
[1732446267963,0.10278269,97534.0,97497.0,0.18354587]
[1732446267964,0.12501427,97533.0,97509.0,0.04215301]
[1732446268260,0.023,97530.0,97508.0,0.00448613]
[1732446268468,0.023,97530.0,97498.0,0.2200594]
[1732446268469,0.10278269,97529.0,97499.0,0.09179959]
[1732446268681,0.10278269,97529.0,97499.0,0.04643801]
[1732446268884,0.10278269,97529.0,97500.0,0.00448892]
[1732446269527,0.10278269,97529.0,97501.0,0.00102547]
[1732446269738,0.10278269,97529.0,97502.0,0.03038431]
[1732446269952,0.10278269,97529.0,97502.0,0.03487137]
[1732446270168,0.10278269,97529.0,97503.0,0.00102547]
[1732446270621,0.10278269,97529.0,97504.0,0.0044852]
[1732446271930,0.023,97528.0,97504.0,0.0044852]
[1732446272166,0.10278269,97527.0,97505.0,0.05939225]
[1732446272641,0.10278269,97527.0,97506.0,0.00448147]
[1732446274220,0.10278269,97527.0,97499.0,0.24179959]
[1732446274471,0.10278269,97527.0,97507.0,0.00448054]
[1732446274682,0.10278269,97527.0,97500.0,0.00102547]
[1732446275106,0.10278269,97527.0,97501.0,0.00448613]
[1732446275822,0.10278269,97527.0,97502.0,0.00102547]
[1732446276031,0.10278269,97527.0,97503.0,0.02784129]
[1732446276239,0.10278269,97527.0,97503.0,0.03229322]
[1732446277283,0.10278269,97527.0,97504.0,0.00102547]
[1732446277726,0.10278269,97527.0,97505.0,0.00445007]
[1732446277947,0.10278269,97527.0,97506.0,0.02785429]
[1732446278173,0.0771,97526.0,97506.0,0.02785429]
[1732446278430,0.10278269,97525.0,97507.0,0.00444821]
[1732446278860,0.10278269,97525.0,97503.0,0.02784129]
[1732446279120,0.10278269,97525.0,97504.0,0.03934003]
[1732446279339,0.10278269,97525.0,97504.0,0.0501812]
[1732446279563,0.10278269,97525.0,97505.0,0.00639203]
[1732446279776,0.10278269,97525.0,97506.0,0.00639203]
[1732446279991,0.10278269,97525.0,97507.0,0.01428009]
[1732446280242,0.10278269,97525.0,97508.0,0.00639203]
[1732446280487,0.10278269,97525.0,97509.0,0.00639203]
[1732446280727,0.10278269,97525.0,97508.0,0.00444542]
[1732446280728,0.0458,97524.0,97510.0,0.00639203]
[1732446280970,0.10278269,97523.0,97511.0,0.01219858]
[1732446281197,0.0458,97522.0,97512.0,0.00639203]
[1732446281413,0.0458,97522.0,97498.0,0.04050129]
[1732446281414,0.023,97519.0,97513.0,0.00639203]
[1732446281631,0.023,97517.0,97514.0,0.00639203]
[1732446281859,0.10278269,97516.0,97515.0,0.00639203]
[1732446282508,0.10278269,97516.0,97501.0,0.01330743]
[1732446282738,0.10278269,97516.0,97502.0,0.02046668]
[1732446282954,0.10278269,97516.0,97502.0,0.00445556]
[1732446283411,0.10278269,97516.0,97498.0,0.04050129]
[1732446284270,0.10278269,97516.0,97501.0,0.00446928]
[1732446284934,0.023,97515.0,97501.0,0.00446928]
[1732446285166,0.0458,97520.0,97501.0,0.00446928]
[1732446285167,0.023,97513.0,97501.0,0.00446928]
[1732446285374,0.10278269,97512.0,97501.0,0.00446928]
[1732446285586,0.10278269,97512.0,97498.0,0.04050129]
[1732446286014,0.10278269,97512.0,97501.0,0.03278186]
[1732446288868,0.10278269,97512.0,97501.0,0.00447443]
[1732446289087,0.10278269,97512.0,97498.0,0.04050129]
[1732446289301,0.10278269,97512.0,97501.0,0.00449123]
[1732446289515,0.10278269,97512.0,97498.0,0.04050129]
[1732446289716,0.10278269,97512.0,97501.0,0.00449708]
[1732446289934,0.023,97511.0,97498.0,0.04050129]
[1732446290152,0.023,97509.0,97501.0,0.01913594]
[1732446290367,0.10278269,97508.0,97501.0,0.02363209]
[1732446290610,0.10278269,97508.0,97502.0,0.03067309]
[1732446291006,0.10278269,97508.0,97503.0,0.00449149]
[1732446291439,0.10278269,97508.0,97502.0,0.03067309]
[1732446291636,0.10278269,97508.0,97504.0,0.00449056]
[1732446291839,0.10278269,97508.0,97505.0,0.00448963]
[1732446292046,0.10278269,97508.0,97503.0,0.03137719]
[1732446292246,0.10278269,97508.0,97504.0,0.00449056]
[1732446292454,0.10278269,97508.0,97503.0,0.03137719]
[1732446292657,0.10278269,97508.0,97504.0,0.00449056]
[1732446292860,0.10278269,97508.0,97498.0,0.04050129]
[1732446293060,0.10278269,97508.0,97501.0,0.0044961]
[1732446293261,0.1233,97507.0,97501.0,0.0044961]
[1732446293534,0.023,97505.0,97498.0,0.04050129]
[1732446293771,0.023,97503.0,97498.0,0.04050129]
[1732446293978,0.023,97501.0,97498.0,0.04050129]
[1732446294126,0.10278269,97501.0,97498.0,0.04050129]
[1732446294365,0.12578269,97501.0,97498.0,0.04050129]
[1732446295550,0.12578269,97501.0,97489.0,0.0008581]
[1732446296032,0.17161427,97501.0,97493.0,0.04079058]
[1732446296253,0.24831427,97501.0,97493.0,0.04079058]
[1732446300384,0.24831427,97501.0,97489.0,0.0008581]
[1732446300805,0.25031427,97501.0,97489.0,0.0008581]
[1732446300978,0.24831427,97501.0,97489.0,0.0008581]
[1732446301390,0.2800734,97501.0,97489.0,0.0008581]
[1732446301818,0.58129082,97501.0,97489.0,0.0008581]
[1732446302033,0.4820734,97501.0,97489.0,0.0008581]
[1732446302867,0.023,97496.0,97489.0,0.00048304]
[1732446303080,0.202,97498.0,97489.0,0.00048304]
[1732446303081,0.25411427,97490.0,97489.0,0.00048304]
[1732446303719,0.45411427,97490.0,97489.0,0.00048304]
[1732446304143,0.45611427,97490.0,97489.0,0.00048304]
[1732446304783,0.60611427,97490.0,97489.0,0.00048304]
[1732446305405,0.61481578,97490.0,97489.0,0.00048304]
[1732446305618,0.71270601,97490.0,97489.0,0.00048304]
[1732446305841,0.352,97489.0,97488.0,0.00074802]
[1732446306052,0.71270601,97489.0,97488.0,0.00074802]
[1732446306521,0.91270601,97489.0,97488.0,0.00074802]
[1732446306741,0.1311,97477.0,97476.0,0.0008584]
[1732446306949,0.38388269,97477.0,97476.0,0.0008584]
[1732446307144,0.38311427,97477.0,97476.0,0.0008584]
[1732446308399,0.41476281,97477.0,97476.0,0.0008584]
[1732446310655,0.21476281,97477.0,97476.0,0.0008584]
[1732446310855,0.41553123,97477.0,97476.0,0.0008584]
[1732446311099,0.41476281,97477.0,97476.0,0.0008584]
[1732446314979,0.56476281,97477.0,97476.0,0.0008584]
[1732446315216,0.41476281,97477.0,97476.0,0.0008584]
[1732446315649,0.1291,97467.0,97455.0,0.0008585]
[1732446315861,0.10201427,97456.0,97455.0,0.0008585]
[1732446316981,0.19323394,97456.0,97455.0,0.0008585]
[1732446317202,0.18925722,97456.0,97455.0,0.0008585]
[1732446317444,0.18358953,97456.0,97455.0,0.0008585]
[1732446317674,0.09356882,97456.0,97455.0,0.0008585]
[1732446317903,0.29356882,97456.0,97455.0,0.0008585]
[1732446318343,0.59231917,97456.0,97455.0,0.0008585]
[1732446318548,0.61126422,97456.0,97455.0,0.0008585]
[1732446318760,0.61126422,97456.0,97455.0,0.0005693]
[1732446319874,0.76126422,97456.0,97455.0,0.0005693]
[1732446320552,0.88426422,97456.0,97455.0,0.0005693]
[1732446322452,0.9145723,97456.0,97455.0,0.0005693]
[1732446322659,0.88426422,97456.0,97455.0,0.0005693]
[1732446323089,0.86531917,97456.0,97455.0,0.0005693]
[1732446323297,0.88426364,97456.0,97455.0,0.0005693]
[1732446324767,0.9562961,97456.0,97455.0,0.0005693]
[1732446325190,0.86531917,97456.0,97455.0,0.0005693]
[1732446325619,0.88427473,97456.0,97455.0,0.0005693]
[1732446326120,0.3287,97446.0,97416.0,0.0833]
[1732446326323,0.44966983,97446.0,97416.0,0.0833]
[1732446326534,0.44966983,97446.0,97421.0,0.0406486]
[1732446327756,0.2,97437.0,97417.0,0.023]
[1732446328003,0.10201427,97430.0,97423.0,0.023]
[1732446328228,0.10201427,97430.0,97424.0,0.00583949]
[1732446328430,0.10201427,97430.0,97425.0,0.023]
[1732446328634,0.10201427,97428.0,97425.0,0.023]
[1732446330419,0.10201427,97426.0,97425.0,0.023]
[1732446330626,0.10201427,97426.0,97424.0,0.023]
[1732446330832,0.10201427,97425.0,97424.0,0.023]
[1732446331317,0.10201427,97425.0,97410.0,0.08738781]
[1732446331539,0.10201427,97419.0,97411.0,0.00882459]
[1732446331784,0.10201427,97419.0,97411.0,0.01368378]
[1732446332198,0.10201427,97419.0,97411.0,0.0120597]
[1732446332817,0.10201427,97419.0,97412.0,0.023]
[1732446333032,0.10201427,97419.0,97414.0,0.023]
[1732446333445,0.10201427,97419.0,97415.0,0.00323324]
[1732446333651,0.10201427,97419.0,97416.0,0.023]
[1732446333857,0.10201427,97419.0,97416.0,0.02597577]
[1732446334068,0.10201427,97419.0,97417.0,0.02081941]
[1732446334535,0.10201427,97419.0,97418.0,0.00323138]
[1732446335850,0.10201427,97419.0,97410.0,0.04188781]
[1732446336054,0.10201427,97416.0,97410.0,0.04188781]
[1732446336273,0.10201427,97416.0,97411.0,0.01252459]
[1732446339126,0.10201427,97413.0,97411.0,0.01252459]
[1732446340225,0.10201427,97412.0,97411.0,0.01252459]
[1732446340668,0.1336186,97412.0,97407.0,0.0008581]
[1732446340879,0.10201427,97408.0,97407.0,0.0008581]
[1732446341080,0.13357754,97408.0,97407.0,0.0008581]
[1732446341285,0.13357754,97408.0,97407.0,0.00998556]
[1732446342616,0.13357754,97408.0,97407.0,0.0008581]
[1732446345569,0.13357754,97408.0,97393.0,0.0455]
[1732446345570,0.2,97407.0,97393.0,0.0455]
[1732446345786,0.10201427,97397.0,97386.0,0.0822]
[1732446345980,0.10201427,97397.0,97394.0,0.00298105]
[1732446346390,0.10201427,97397.0,97392.0,0.01285581]
[1732446347142,0.10201427,97397.0,97393.0,0.00298531]
[1732446347601,0.10201427,97396.0,97393.0,0.00298531]
[1732446347827,0.10201427,97396.0,97394.0,0.00582726]
[1732446348056,0.10201427,97395.0,97394.0,0.00887986]
[1732446348292,0.1336284,97395.0,97391.0,0.0008581]
[1732446348515,0.10201427,97393.0,97391.0,0.0008581]
[1732446350521,0.10201427,97392.0,97391.0,0.0008581]
[1732446351460,0.13366044,97392.0,97391.0,0.0008581]
[1732446359545,0.33366044,97392.0,97391.0,0.0008581]
[1732446360434,0.48286044,97392.0,97391.0,0.0008581]
[1732446360633,0.2,97383.0,97365.0,0.0804]
[1732446360844,0.10201427,97373.0,97366.0,0.01295]
[1732446364555,0.10201427,97373.0,97366.0,0.0138087]
[1732446366253,0.10201427,97373.0,97367.0,0.1295]
[1732446366470,0.10201427,97373.0,97370.0,0.0491]
[1732446366674,0.404,97405.0,97373.0,0.1295]
[1732446366884,0.10201427,97393.0,97380.0,0.1295]
[1732446367335,0.10201427,97393.0,97381.0,0.00286308]
[1732446367722,0.03167697,97392.0,97381.0,0.00286308]
[1732446367926,0.10201427,97391.0,97381.0,0.00286308]
[1732446368129,0.10201427,97391.0,97380.0,0.1295]
[1732446368130,0.10201427,97391.0,97382.0,0.01963731]
[1732446368333,0.10201427,97391.0,97382.0,0.02249977]
[1732446368539,0.10201427,97391.0,97383.0,0.006401]
[1732446368787,0.10201427,97391.0,97384.0,0.006401]
[1732446369002,0.10201427,97391.0,97384.0,0.00286182]
[1732446369211,0.0774,97401.0,97376.0,0.0804]
[1732446369212,0.10201427,97389.0,97385.0,0.00640144]
[1732446369435,0.10201427,97387.0,97386.0,0.00640144]
[1732446369644,0.10201427,97387.0,97377.0,0.01295]
[1732446369851,0.10201427,97387.0,97378.0,0.014245]
[1732446370105,0.10201427,97387.0,97386.0,0.00284862]
[1732446370321,0.10201427,97387.0,97378.0,0.014245]
[1732446370322,0.17941427,97387.0,97378.0,0.014245]
[1732446370538,0.17941427,97387.0,97364.0,0.0804]
[1732446370539,0.10201427,97381.0,97364.0,0.0804]
[1732446370753,0.03168285,97380.0,97366.0,0.0423483]
[1732446370991,0.10201427,97379.0,97367.0,0.02644812]
[1732446371202,0.03168285,97378.0,97367.0,0.02004588]
[1732446371422,0.10201427,97377.0,97367.0,0.02004588]
[1732446371635,0.03168285,97376.0,97368.0,0.01504046]
[1732446371853,0.10201427,97375.0,97368.0,0.01504046]
[1732446372055,0.10201427,97375.0,97369.0,0.00286101]
[1732446372480,0.10201427,97373.0,97369.0,0.00286101]
[1732446372741,0.10201427,97373.0,97370.0,0.00991602]
[1732446373169,0.10201427,97373.0,97371.0,0.00286098]
[1732446373599,0.10201427,97373.0,97370.0,0.00991602]
[1732446374028,0.10201427,97373.0,97371.0,0.00286158]
[1732446374443,0.10201427,97373.0,97370.0,0.00991602]
[1732446374657,0.10201427,97373.0,97366.0,0.0008587]
[1732446374658,0.10201427,97373.0,97371.0,0.00911747]
[1732446374889,0.10201427,97373.0,97372.0,0.00286893]
[1732446375097,0.10201427,97373.0,97371.0,0.00911747]
[1732446376591,0.10201427,97373.0,97366.0,0.0008587]
[1732446377007,0.10201427,97373.0,97367.0,0.00287446]
[1732446377859,0.10201427,97373.0,97367.0,0.00106332]
[1732446378076,0.10201427,97373.0,97367.0,0.00255738]
[1732446380560,0.10201427,97373.0,97366.0,0.0008587]
[1732446382162,0.10201427,97368.0,97366.0,0.0008587]
[1732446384814,0.29117054,97379.0,97366.0,0.0008587]
[1732446384815,0.10201427,97367.0,97366.0,0.0008587]
[1732446385504,0.10201427,97367.0,97354.0,0.0471]
[1732446385713,0.10201427,97364.0,97358.0,0.01396422]
[1732446385919,0.10201427,97363.0,97358.0,0.01396422]
[1732446386129,0.10201427,97363.0,97359.0,0.01065064]
[1732446387308,0.10201427,97363.0,97347.0,0.1250586]
[1732446387770,0.10201427,97362.0,97347.0,0.1250586]
[1732446387980,0.10201427,97360.0,97347.0,0.1250586]
[1732446388211,0.1231,97372.0,97347.0,0.1250586]
[1732446388212,0.10201427,97358.0,97347.0,0.1250586]
[1732446388427,0.10201427,97358.0,97357.0,0.0153322]
[1732446388635,0.10201427,97358.0,97357.0,0.01522142]
[1732446392186,0.10201427,97358.0,97357.0,0.01512642]
[1732446392852,0.10201427,97358.0,97357.0,0.13932642]
[1732446393081,0.0017182,97373.0,97357.0,0.13932642]
[1732446393082,0.0017182,97373.0,97371.0,0.002]
[1732446393298,0.0017182,97373.0,97372.0,0.1262]
[1732446393509,0.0017182,97373.0,97372.0,0.14154051]
[1732446394227,0.0017182,97373.0,97372.0,0.15818433]
[1732446394467,0.0017182,97373.0,97372.0,0.15618433]
[1732446394701,0.0017182,97373.0,97372.0,0.14594198]
[1732446395226,0.10373247,97373.0,97372.0,0.14594198]
[1732446395696,0.10373247,97373.0,97372.0,0.13682]
[1732446395907,0.10373247,97373.0,97372.0,0.13953532]
[1732446396136,0.10373247,97373.0,97372.0,0.14593699]
[1732446396567,0.10373247,97373.0,97372.0,0.14593697]
[1732446396800,0.10373247,97373.0,97372.0,0.14593691]
[1732446397306,0.10373247,97373.0,97372.0,0.13953532]
[1732446397563,0.10373247,97373.0,97372.0,0.14593698]
[1732446397813,0.10373247,97373.0,97372.0,0.13953532]
[1732446398288,0.10373247,97373.0,97372.0,0.14593707]
[1732446398538,0.10373247,97373.0,97372.0,0.09243532]
[1732446399052,0.10373247,97373.0,97372.0,0.01533532]
[1732446399281,0.10373247,97373.0,97372.0,0.00271532]
[1732446399535,0.10373247,97373.0,97365.0,0.0771]
[1732446399776,0.10201427,97372.0,97366.0,0.00640216]
[1732446400008,0.10201427,97372.0,97365.0,0.0771]
[1732446400257,0.10201427,97372.0,97366.0,0.01673011]
[1732446400526,0.10201427,97372.0,97361.0,0.0471]
[1732446400755,0.10201427,97372.0,97362.0,0.00640235]
[1732446400989,0.10201427,97372.0,97363.0,0.00640235]
[1732446401244,0.10201427,97372.0,97364.0,0.01667523]
[1732446401473,0.10201427,97372.0,97365.0,0.00640235]
[1732446401700,0.10201427,97372.0,97366.0,0.00640235]
[1732446401956,0.10201427,97372.0,97364.0,0.01027288]
[1732446402253,0.10201427,97367.0,97365.0,0.00640241]
[1732446402485,0.023,97372.0,97357.0,0.01512642]
[1732446402923,0.0247182,97372.0,97357.0,0.01512642]
[1732446403876,0.023,97370.0,97357.0,0.01512642]
[1732446404085,0.023,97368.0,97357.0,0.01512642]
[1732446404289,0.023,97370.0,97357.0,0.01512642]
[1732446404290,0.10201427,97362.0,97357.0,0.01512642]
[1732446410519,0.10174209,97362.0,97357.0,0.01512642]
[1732446411633,0.10201427,97360.0,97357.0,0.01512642]
[1732446414432,0.10186002,97360.0,97357.0,0.01512642]
[1732446415332,0.10186002,97360.0,97358.0,0.0462]
[1732446415557,0.10186002,97360.0,97359.0,0.00613264]
[1732446415766,0.10186002,97360.0,97359.0,0.00888096]
[1732446417327,0.10186002,97360.0,97359.0,0.00274832]
[1732446417540,0.10186002,97360.0,97357.0,0.01512642]
[1732446424312,0.10201427,97358.0,97357.0,0.01512642]
[1732446424977,0.12501427,97358.0,97357.0,0.01512642]
[1732446428042,0.27501427,97358.0,97357.0,0.01512642]
[1732446429363,0.30672462,97358.0,97357.0,0.01512642]
[1732446430215,0.30672018,97358.0,97357.0,0.01512642]
[1732446431959,0.40281456,97358.0,97357.0,0.01512642]
[1732446433492,0.60281456,97358.0,97357.0,0.01512642]
[1732446434592,0.60281456,97358.0,97336.0,0.0799]
[1732446434593,0.173,97356.0,97336.0,0.0799]
[1732446434810,0.12501427,97348.0,97336.0,0.0799]
[1732446435021,0.15672018,97348.0,97336.0,0.0799]
[1732446435227,0.15672018,97348.0,97331.0,0.002]
[1732446438348,0.15672018,97348.0,97324.0,0.0799]
[1732446438578,0.15672018,97348.0,97331.0,0.002]
[1732446438801,0.15672018,97348.0,97324.0,0.0799]
[1732446439037,0.15672018,97348.0,97326.0,0.002]
[1732446439296,0.15672018,97348.0,97324.0,0.07862463]
[1732446439297,0.023,97342.0,97324.0,0.07862463]
[1732446439513,0.10201427,97329.0,97325.0,0.01982823]
[1732446439734,0.10201427,97329.0,97325.0,0.02236155]
[1732446439951,0.10201427,97329.0,97326.0,0.02213685]
[1732446440167,0.10201427,97329.0,97326.0,0.02466295]
[1732446441794,0.10201427,97329.0,97324.0,0.07615073]
[1732446442013,0.10201427,97328.0,97327.0,0.00231739]
[1732446442224,0.10201427,97328.0,97327.0,0.01542809]
[1732446442439,0.10201427,97328.0,97327.0,0.00233048]
[1732446442899,0.10201427,97328.0,97322.0,0.025]
[1732446443128,0.35,97338.0,97327.0,0.0023345]
[1732446443359,0.35,97338.0,97322.0,0.025]
[1732446443360,0.03169089,97337.0,97328.0,0.00781473]
[1732446444024,0.03169089,97337.0,97322.0,0.025]
[1732446444680,0.2,97336.0,97322.0,0.025]
[1732446444889,0.03169089,97335.0,97322.0,0.025]
[1732446445107,0.10201427,97323.0,97322.0,0.025]
[1732446445752,0.10201427,97323.0,97322.0,0.02728943]
[1732446445968,0.1952924,97323.0,97322.0,0.02728943]
[1732446446174,0.10201427,97323.0,97322.0,0.02728943]
[1732446448343,0.10201427,97323.0,97321.0,0.0057128]
[1732446448558,0.10201427,97322.0,97321.0,0.0057128]
[1732446450116,0.15,97321.0,97306.0,0.02321955]
[1732446450319,0.10201427,97307.0,97306.0,0.02321955]
[1732446450530,0.34944343,97307.0,97306.0,0.02321955]
[1732446450742,0.25201427,97307.0,97306.0,0.02904151]
[1732446450951,0.25201427,97307.0,97306.0,0.02321955]
[1732446452081,0.07701427,97307.0,97306.0,0.02321955]